2CCN - Level 2 Cost Centre Name,,9CCN - Level 9 Cost Centre Name,9CCC - Level 9 Cost Centre Code,9AN - Level 9 Account Name,9AC - Level 9 Account Code,Date posted,Date of transaction,Merchant Name,Merchant City,Merchant State,Merchant Zip Code,Originating Account Name,Originating Account Number,MCC/SIC Code,MCC Description,Original Amount,Currency,Conversion Rate,Billed Amount,Debit Credit,Reference Number,Statement Cycle,Account Name
Gloucester City Council,23UE,Museum of Gloucester,MU002,Exhibition Costs,3021,03/12/2018,01/12/2018,B & Q 1179,GLOUCESTER,,GL12SG,REDACTED,556*********2362,5211,LUMBER AND BUILDING MATERIALS STORES,124.28,Pound Sterling (826),1,124.28,Debit,8.54815E+22,02/01/2019,GLOUCESTER CC
Gloucester City Council,23UE,Museum of Gloucester,MU002,Catering Provisions,3103,03/12/2018,01/12/2018,ASDA SUPERSTORE,GLOUCESTER,GBR,GL1 1DS,REDACTED,556*********2362,5411,"GROCERY STORES, SUPERMARKETS",2.96,Pound Sterling (826),1,2.96,Debit,1.53778E+22,02/01/2019,GLOUCESTER CC
Gloucester City Council,23UE,Museum of Gloucester,MU002,General Supplies/Materials,3025,04/12/2018,03/12/2018,COLLECTIONS TRUST,LONDON,GBR,E1 6LA,REDACTED,556*********2362,5111,"STATIONERY,OFFICE SUPPLIES,PRINTING AND WRITING PAPER",190,Pound Sterling (826),1,190,Debit,5.51842E+22,02/01/2019,GLOUCESTER CC
Gloucester City Council,23UE,Museum of Gloucester,MU002,General Supplies/Materials,3025,04/12/2018,03/12/2018,COLLECTIONS TRUST,LONDON,GBR,E1 6LA,REDACTED,556*********2362,5111,"STATIONERY,OFFICE SUPPLIES,PRINTING AND WRITING PAPER",71.8,Pound Sterling (826),1,71.8,Debit,5.51842E+22,02/01/2019,GLOUCESTER CC
Gloucester City Council,23UE,Museum of Gloucester,MU002,General Supplies/Materials,3025,05/12/2018,04/12/2018,B & Q 1179,GLOUCESTER,,GL12SG,REDACTED,556*********2362,5211,LUMBER AND BUILDING MATERIALS STORES,45,Pound Sterling (826),1,45,Debit,8.54815E+22,02/01/2019,GLOUCESTER CC
Gloucester City Council,23UE,Museum of Gloucester,MU002,Catering Provisions,3103,05/12/2018,04/12/2018,ASDA SUPERSTORE,GLOUCESTER,GBR,GL1 1DS,REDACTED,556*********2362,5411,"GROCERY STORES, SUPERMARKETS",24,Pound Sterling (826),1,24,Debit,4.53778E+22,02/01/2019,GLOUCESTER CC
Gloucester City Council,23UE,Museum of Gloucester,MU002,General Supplies/Materials,3025,05/12/2018,04/12/2018,AMZN MKTP UK*M04WE3HR4,AMAZON.CO.UK,LUX,,REDACTED,556*********2362,5942,BOOK STORES,39.98,Pound Sterling (826),1,39.98,Debit,8.53892E+22,02/01/2019,GLOUCESTER CC
Gloucester City Council,23UE,Museum of Gloucester,MU002,General Supplies/Materials,3025,05/12/2018,04/12/2018,AMZN MKTP UK*M05VD2564,AMAZON.CO.UK,LUX,,REDACTED,556*********2362,5942,BOOK STORES,18.95,Pound Sterling (826),1,18.95,Debit,8.53892E+22,02/01/2019,GLOUCESTER CC
Gloucester City Council,23UE,Museum of Gloucester,MU002,General Supplies/Materials,3025,06/12/2018,05/12/2018,AMZN MKTP UK*M01MG28O4,AMAZON.CO.UK,LUX,,REDACTED,556*********2362,5942,BOOK STORES,5.68,Pound Sterling (826),1,5.68,Debit,8.53892E+22,02/01/2019,GLOUCESTER CC
Gloucester City Council,23UE,Museum of Gloucester,MU002,General Supplies/Materials,3025,06/12/2018,05/12/2018,AMZN MKTP UK*M04IO4864,AMAZON.CO.UK,LUX,,REDACTED,556*********2362,5942,BOOK STORES,6.11,Pound Sterling (826),1,6.11,Debit,8.53892E+22,02/01/2019,GLOUCESTER CC
Gloucester City Council,23UE,Museum of Gloucester,MU002,General Supplies/Materials,3025,06/12/2018,05/12/2018,B & Q 1179,GLOUCESTER,,GL12SG,REDACTED,556*********2362,5211,LUMBER AND BUILDING MATERIALS STORES,62.73,Pound Sterling (826),1,62.73,Debit,8.54815E+22,02/01/2019,GLOUCESTER CC
Gloucester City Council,23UE,Museum of Gloucester,MU002,General Supplies/Materials,3025,07/12/2018,05/12/2018,AMZN MKTP UK*M07HY8QP4,AMAZON.CO.UK,LUX,,REDACTED,556*********2362,5942,BOOK STORES,22.86,Pound Sterling (826),1,22.86,Debit,8.53892E+22,02/01/2019,GLOUCESTER CC
Gloucester City Council,23UE,Gloucester Life Museum,MU005,Catering Provisions,3103,10/12/2018,07/12/2018,ASDA SUPERSTORE,GLOUCESTER,GBR,GL1 1DS,REDACTED,556*********2362,5411,"GROCERY STORES, SUPERMARKETS",3.05,Pound Sterling (826),1,3.05,Debit,4.53778E+22,02/01/2019,GLOUCESTER CC
Gloucester City Council,23UE,Museum of Gloucester,MU002,General Supplies/Materials,3025,10/12/2018,08/12/2018,IZ *Mindbender Puzzles,Gloucester,GBR,GL46UD,REDACTED,556*********2362,7333,"COMMERCIAL PHOTOGRAPHY, ART, AND GRAPHICS",25,Pound Sterling (826),1,25,Debit,5.51842E+22,02/01/2019,GLOUCESTER CC
Gloucester City Council,23UE,Museum of Gloucester,MU002,General Supplies/Materials,3025,17/12/2018,15/12/2018,THE WORKS,GLOUCESTER,,GL1 2NG,REDACTED,556*********2362,5310,DISCOUNT STORES,6,Pound Sterling (826),1,6,Debit,8.54815E+22,02/01/2019,GLOUCESTER CC
Gloucester City Council,23UE,Museum of Gloucester,MU002,Exhibition Costs,3021,19/12/2018,18/12/2018,AMZN Mktp UK*M21MK11M4,800-279-6620,LUX,L2338,REDACTED,556*********2362,5942,BOOK STORES,167.98,Pound Sterling (826),1,167.98,Debit,5.52047E+22,02/01/2019,GLOUCESTER CC
Gloucester City Council,23UE,Museum of Gloucester,MU002,Exhibition Costs,3021,20/12/2018,19/12/2018,AMZN MKTP UK*M20TT0GJ4,AMAZON.CO.UK,LUX,,REDACTED,556*********2362,5942,BOOK STORES,78.68,Pound Sterling (826),1,78.68,Debit,8.53892E+22,02/01/2019,GLOUCESTER CC
Gloucester City Council,23UE,Museum of Gloucester,MU002,Exhibition Costs,3021,20/12/2018,19/12/2018,AMZN MKTP UK*M25WH3XW4,AMAZON.CO.UK,LUX,,REDACTED,556*********2362,5942,BOOK STORES,49.2,Pound Sterling (826),1,49.2,Debit,8.53892E+22,02/01/2019,GLOUCESTER CC
Gloucester City Council,23UE,Museum of Gloucester,MU002,Catering Provisions,3103,20/12/2018,19/12/2018,ASDA SUPERSTORE,GLOUCESTER,GBR,GL1 1DS,REDACTED,556*********2362,5411,"GROCERY STORES, SUPERMARKETS",1.09,Pound Sterling (826),1,1.09,Debit,4.53778E+22,02/01/2019,GLOUCESTER CC
Gloucester City Council,23UE,Managing Director & Directors,MT001,Professional Membership & Subscriptions,3403,11/12/2018,10/12/2018,WWW.SOLACE.ORG.UK,PONTEFRACT,,WF8 1NT,REDACTED,556*********1418,8699,MEMBERSHIP ORGANIZATIONS NOT ELSEWHERE CLASSIFIED,630,Pound Sterling (826),1,630,Debit,5.5542E+22,02/01/2019,GLOUCESTER CC
Gloucester City Council,23UE,Economic Development,ED001,Books & Publications,3401,12/12/2018,11/12/2018,CIRCLE 2 SUCCESS LIMIT,3300536186,,GL53 0DL,REDACTED,556*********1418,7392,"MANAGEMENT, CONSULTING AND PUBLIC RELATIONS SERVICES",24,Pound Sterling (826),1,24,Debit,8.54815E+22,02/01/2019,GLOUCESTER CC
Gloucester City Council,23UE,Members Support,DS002,Catering Provisions,3103,18/12/2018,17/12/2018,MARKS&SPENCER PLC,INTERNET,GBR,M50 3SP,REDACTED,556*********1418,5411,"GROCERY STORES, SUPERMARKETS",10,Pound Sterling (826),1,10,Debit,4.53778E+22,02/01/2019,GLOUCESTER CC
Gloucester City Council,23UE,Managing Director & Directors,MT001,Stationery,3201,21/12/2018,20/12/2018,AMZN MKTP UK*M21M59MF4,AMAZON.CO.UK,LUX,,REDACTED,556*********1418,5942,BOOK STORES,14.78,Pound Sterling (826),1,14.78,Debit,8.53892E+22,02/01/2019,GLOUCESTER CC
Gloucester City Council,23UE,Guildhall Bar and Caf�,GH005,Catering Provisions,3103,03/12/2018,30/11/2018,ASDA GROCERIES ONLINE,INTERNET,GBR,LS11 5AD,REDACTED,556*********1155,5411,"GROCERY STORES, SUPERMARKETS",125.63,Pound Sterling (826),1,125.63,Debit,1.53778E+22,02/01/2019,GLOUCESTER CC
Gloucester City Council,23UE,Guildhall Bar and Caf�,GH005,Catering Provisions,3103,03/12/2018,30/11/2018,SAINSBURYS SACAT 2221,GLOUCESTER,GBR,GL2 5SA,REDACTED,556*********1155,5411,"GROCERY STORES, SUPERMARKETS",14.6,Pound Sterling (826),1,14.6,Debit,2.54252E+22,02/01/2019,GLOUCESTER CC
Gloucester City Council,23UE,Guildhall Bar and Caf�,GH005,Catering Provisions,3103,03/12/2018,30/11/2018,BARGAIN BOOZE 1868,GLOUCESTER,,GL1 5TA,REDACTED,556*********1155,5921,"PACKAGE STORES, BEER, LIQUOR",29.99,Pound Sterling (826),1,29.99,Debit,8.54815E+22,02/01/2019,GLOUCESTER CC
Gloucester City Council,23UE,Guildhall Bar and Caf�,GH005,Catering Provisions,3103,03/12/2018,30/11/2018,ASDA GROCERIES ONLINE,INTERNET,GBR,LS11 5AD,REDACTED,556*********1155,5411,"GROCERY STORES, SUPERMARKETS",-26,Pound Sterling (826),1,-26,Credit,1.53778E+22,02/01/2019,GLOUCESTER CC
Gloucester City Council,23UE,Guildhall Bar and Caf�,GH005,Catering Provisions,3103,04/12/2018,03/12/2018,SAINSBURYS SACAT 0608,GLOUCESTER,GBR,GL4 3RT,REDACTED,556*********1155,5411,"GROCERY STORES, SUPERMARKETS",7.2,Pound Sterling (826),1,7.2,Debit,2.54252E+22,02/01/2019,GLOUCESTER CC
Gloucester City Council,23UE,Guildhall Bar and Caf�,GH005,Catering Provisions,3103,04/12/2018,03/12/2018,THE ENGLISH BLIND COMP,SOLIHULL,GBR,B912HB,REDACTED,556*********1155,5714,"WINDOW COVERING, UPHOLSTERY AND DRAPERY STORES",57.41,Pound Sterling (826),1,57.41,Debit,5.51842E+22,02/01/2019,GLOUCESTER CC
Gloucester City Council,23UE,Guildhall Bar and Caf�,GH005,Catering Provisions,3103,04/12/2018,03/12/2018,BOOKER LIMITED GLOUCES,GLOUCESTER,GBR,GL4 3RT,REDACTED,556*********1155,5811,CATERERS,116.75,Pound Sterling (826),1,116.75,Debit,5.51842E+22,02/01/2019,GLOUCESTER CC
Gloucester City Council,23UE,Guildhall Bar and Caf�,GH005,Catering Provisions,3103,05/12/2018,04/12/2018,SAINSBURYS SACAT 0771,GLOUCESTER,GBR,GL1 2AG,REDACTED,556*********1155,5411,"GROCERY STORES, SUPERMARKETS",8,Pound Sterling (826),1,8,Debit,2.54252E+22,02/01/2019,GLOUCESTER CC
Gloucester City Council,23UE,Guildhall Bar and Caf�,GH005,Catering Provisions,3103,05/12/2018,04/12/2018,ICELAND,GLOUCESTER,GBR,GL1 1SA,REDACTED,556*********1155,5411,"GROCERY STORES, SUPERMARKETS",5,Pound Sterling (826),1,5,Debit,2.53778E+22,02/01/2019,GLOUCESTER CC
Gloucester City Council,23UE,Guildhall Bar and Caf�,GH005,Catering Provisions,3103,07/12/2018,06/12/2018,SAINSBURYS SACAT 0771,GLOUCESTER,GBR,GL1 2AG,REDACTED,556*********1155,5411,"GROCERY STORES, SUPERMARKETS",11.6,Pound Sterling (826),1,11.6,Debit,2.54252E+22,02/01/2019,GLOUCESTER CC
Gloucester City Council,23UE,Guildhall Bar and Caf�,GH005,Catering Provisions,3103,11/12/2018,10/12/2018,SAINSBURYS SACAT 0771,GLOUCESTER,GBR,GL1 2AG,REDACTED,556*********1155,5411,"GROCERY STORES, SUPERMARKETS",10.4,Pound Sterling (826),1,10.4,Debit,2.54252E+22,02/01/2019,GLOUCESTER CC
Gloucester City Council,23UE,Guildhall Bar and Caf�,GH005,Catering Provisions,3103,11/12/2018,10/12/2018,ICELAND,GLOUCESTER,GBR,GL1 1SA,REDACTED,556*********1155,5411,"GROCERY STORES, SUPERMARKETS",5,Pound Sterling (826),1,5,Debit,2.53778E+22,02/01/2019,GLOUCESTER CC
Gloucester City Council,23UE,Guildhall Bar and Caf�,GH005,Catering Provisions,3103,12/12/2018,11/12/2018,HOMEBASE LTD 135,GLOUCESTER,,GL43BD,REDACTED,556*********1155,5211,LUMBER AND BUILDING MATERIALS STORES,20.95,Pound Sterling (826),1,20.95,Debit,8.54815E+22,02/01/2019,GLOUCESTER CC
Gloucester City Council,23UE,Guildhall Bar and Caf�,GH005,Catering Provisions,3103,12/12/2018,11/12/2018,B&M RETAIL LTD,HS GLOUCESTER,,GL12DH,REDACTED,556*********1155,5310,DISCOUNT STORES,3.49,Pound Sterling (826),1,3.49,Debit,8.54815E+22,02/01/2019,GLOUCESTER CC
Gloucester City Council,23UE,Guildhall Bar and Caf�,GH005,Catering Provisions,3103,14/12/2018,13/12/2018,AMZN Mktp UK*M26HK9F34,800-279-6620,LUX,L2338,REDACTED,556*********1155,5942,BOOK STORES,71.96,Pound Sterling (826),1,71.96,Debit,5.52047E+22,02/01/2019,GLOUCESTER CC
Gloucester City Council,23UE,Guildhall Bar and Caf�,GH005,Catering Provisions,3103,17/12/2018,14/12/2018,SAINSBURYS SACAT 0771,GLOUCESTER,GBR,GL1 2AG,REDACTED,556*********1155,5411,"GROCERY STORES, SUPERMARKETS",13.85,Pound Sterling (826),1,13.85,Debit,2.54252E+22,02/01/2019,GLOUCESTER CC
Gloucester City Council,23UE,Guildhall Bar and Caf�,GH005,Catering Provisions,3103,18/12/2018,17/12/2018,SAINSBURYS SACAT 0771,GLOUCESTER,GBR,GL1 2AG,REDACTED,556*********1155,5411,"GROCERY STORES, SUPERMARKETS",6.35,Pound Sterling (826),1,6.35,Debit,2.54252E+22,02/01/2019,GLOUCESTER CC
Gloucester City Council,23UE,Guildhall Bar and Caf�,GH005,Catering Provisions,3103,18/12/2018,17/12/2018,ICELAND,GLOUCESTER,GBR,GL1 1SA,REDACTED,556*********1155,5411,"GROCERY STORES, SUPERMARKETS",2.3,Pound Sterling (826),1,2.3,Debit,2.53778E+22,02/01/2019,GLOUCESTER CC
Gloucester City Council,23UE,Guildhall Bar and Caf�,GH005,Catering Provisions,3103,20/12/2018,19/12/2018,ICELAND,GLOUCESTER,GBR,GL1 1SA,REDACTED,556*********1155,5411,"GROCERY STORES, SUPERMARKETS",6,Pound Sterling (826),1,6,Debit,2.53778E+22,02/01/2019,GLOUCESTER CC
Gloucester City Council,23UE,Guildhall Bar and Caf�,GH005,Catering Provisions,3103,20/12/2018,19/12/2018,ICELAND,GLOUCESTER,GBR,GL1 1SA,REDACTED,556*********1155,5411,"GROCERY STORES, SUPERMARKETS",6,Pound Sterling (826),1,6,Debit,2.53778E+22,02/01/2019,GLOUCESTER CC
Gloucester City Council,23UE,Guildhall Bar and Caf�,GH005,Catering Provisions,3103,21/12/2018,20/12/2018,BOOKER LIMITED GLOUCES,GLOUCESTER,GBR,GL4 3RT,REDACTED,556*********1155,5811,CATERERS,198.38,Pound Sterling (826),1,198.38,Debit,5.51842E+22,02/01/2019,GLOUCESTER CC
Gloucester City Council,23UE,Guildhall Bar and Caf�,GH005,Catering Provisions,3103,24/12/2018,21/12/2018,MARKS&SPENCER PLC,GLOUCESTER,GBR,GL1 1PH,REDACTED,556*********1155,5411,"GROCERY STORES, SUPERMARKETS",7.74,Pound Sterling (826),1,7.74,Debit,5.53778E+22,02/01/2019,GLOUCESTER CC
Gloucester City Council,23UE,Guildhall Bar and Caf�,GH005,Catering Provisions,3103,28/12/2018,27/12/2018,LIDL UK GLOUCESTER,GLOUCESTER,GBR,GL4 4LP,REDACTED,556*********1155,5411,"GROCERY STORES, SUPERMARKETS",4.55,Pound Sterling (826),1,4.55,Debit,2.53778E+22,02/01/2019,GLOUCESTER CC
Gloucester City Council,23UE,Guildhall Bar and Caf�,GH005,Catering Provisions,3103,28/12/2018,27/12/2018,LIDL UK GLOUCESTER,GLOUCESTER,GBR,GL4 4LP,REDACTED,556*********1155,5411,"GROCERY STORES, SUPERMARKETS",3.9,Pound Sterling (826),1,3.9,Debit,2.53778E+22,02/01/2019,GLOUCESTER CC
Gloucester City Council,23UE,Gloucester Guildhall,GH001,Professional Advice/Consultants Fees,3952,06/12/2018,05/12/2018,Trainline,London,GBR,1445,REDACTED,556*********8997,4112,PASSENGER RAILWAYS,73.8,Pound Sterling (826),1,73.8,Debit,8.51301E+22,02/01/2019,GLOUCESTER CC
Gloucester City Council,23UE,Gloucester Guildhall,GH001,Professional Advice/Consultants Fees,3952,07/12/2018,05/12/2018,THE ENTERPRISE,LONDON NW3,,NW3 2BL,REDACTED,556*********8997,5813,"DRINKING PLACES (ALCOHOLIC BEV.)-BARS,TAVERNS,NIGHTCLUBS,",153,Pound Sterling (826),1,153,Debit,5.5542E+22,02/01/2019,GLOUCESTER CC
Gloucester City Council,23UE,Guildhall Events,GH002,Advertising & Publicity,3404,07/12/2018,06/12/2018,123-REG.CO.UK,8712309525,,UB3 1HA,REDACTED,556*********8997,4816,COMPUTER NETWORK/INFORMATION SERVICES,35.96,Pound Sterling (826),1,35.96,Debit,5.52033E+22,02/01/2019,GLOUCESTER CC
Gloucester City Council,23UE,Museum of Gloucester,MU002,Building Repairs and Maintenance,1001,10/12/2018,08/12/2018,260 GLOUCESTER,GLOUCESTER,,GL1 5SD,REDACTED,556*********8997,7394,"EQUIP RENTALS & LEASING SERVICES, TOOL RENTAL, FURNITURE RENTAL",-172,Pound Sterling (826),1,-172,Credit,5.55044E+22,02/01/2019,GLOUCESTER CC
Gloucester City Council,23UE,TIC Trading,TI003,General Supplies/Materials,3025,14/12/2018,13/12/2018,ROYAL MAIL ONLINE SHOP,INTERNET,GBR,W1T 1HQ,REDACTED,556*********8997,9402,POSTAGE STAMPS,375.2,Pound Sterling (826),1,375.2,Debit,3.54252E+22,02/01/2019,GLOUCESTER CC
Gloucester City Council,23UE,Guildhall Events,GH002,Advertising & Publicity,3404,17/12/2018,14/12/2018,FACEBK *WHXJPJW9X2,fb.me/ads,IRL,UNKNOWN,REDACTED,556*********8997,7311,ADVERTISING SERVICES,248.69,Pound Sterling (826),1,248.69,Debit,5.52047E+22,02/01/2019,GLOUCESTER CC
Gloucester City Council,23UE,Guildhall Events,GH002,Advertising & Publicity,3404,19/12/2018,18/12/2018,FACEBK *LYZPAJN9X2,fb.me/ads,IRL,UNKNOWN,REDACTED,556*********8997,7311,ADVERTISING SERVICES,11.07,Pound Sterling (826),1,11.07,Debit,5.52047E+22,02/01/2019,GLOUCESTER CC
Gloucester City Council,23UE,loucester Life Museum,MU005,Professional Membership & Subscriptions,3403,19/12/2018,18/12/2018,EB *GLOUCESTERSHIRE TO,801-413-7200,IRL,DUBLIN 8,REDACTED,556*********8997,7399,BUSINESS SERVICES NOT ELSEWHERE CLASSIFIED,30,Pound Sterling (826),1,30,Debit,1.52763E+22,02/01/2019,GLOUCESTER CC
Gloucester City Council,23UE,Guildhall Events,GH002,Advertising & Publicity,3404,24/12/2018,21/12/2018,WWW.INSTANTPRINT.C,01709 382202,,S63 5DR,REDACTED,556*********8997,7338,QUICK-COPY AND REPRODUCTION SERVICES,26.99,Pound Sterling (826),1,26.99,Debit,8.54815E+22,02/01/2019,GLOUCESTER CC
Gloucester City Council,23UE,Docks Complex - Services,AM006,Hospitality & Refreshments,3104,14/12/2018,13/12/2018,TESCO STORES 6654,GLOUCESTER,GBR,GL3 1AB,REDACTED,556*********4301,5411,"GROCERY STORES, SUPERMARKETS",38.43,Pound Sterling (826),1,38.43,Debit,1.53778E+22,02/01/2019,GLOUCESTER CC
Gloucester City Council,23UE,Docks Complex - Services,AM006,Building Repairs and Maintenance,1001,20/12/2018,19/12/2018,TIMPSON LTD,GLOUCESTER,,GL11RW,REDACTED,556*********4301,7251,"SHOE REPAIR SHOPS, SHOE SHINE PARLORS & HAT CLEANING SHOPS",30,Pound Sterling (826),1,30,Debit,8.54815E+22,02/01/2019,GLOUCESTER CC
Gloucester City Council,23UE,Docks Complex - Services,AM006,Building Repairs and Maintenance,1001,06/12/2018,05/12/2018,TIMPSON LTD,GLOUCESTER,,GL11XH,REDACTED,556*********6128,7251,"SHOE REPAIR SHOPS, SHOE SHINE PARLORS & HAT CLEANING SHOPS",12,Pound Sterling (826),1,12,Debit,8.54815E+22,02/01/2019,GLOUCESTER CC
Gloucester City Council,23UE,Docks Complex - Services,AM006,spitality & Refreshments,3104,14/12/2018,13/12/2018,SAINSBURYS 2221,GLOUCESTER,GBR,GL2 5SA,REDACTED,556*********6128,5411,"GROCERY STORES, SUPERMARKETS",72.7,Pound Sterling (826),1,72.7,Debit,2.54252E+22,02/01/2019,GLOUCESTER CC
Gloucester City Council,23UE,Docks Complex - Services,AM006,General Supplies/Materials,3025,17/12/2018,13/12/2018,DENMANS ELECTRICAL,GLOUCESTER,,GL1 3QA,REDACTED,556*********6128,5065,ELECTRICAL PARTS AND EQUIPMENT,164.42,Pound Sterling (826),1,164.42,Debit,8.54815E+22,02/01/2019,GLOUCESTER CC
Gloucester City Council,23UE,Docks Complex - Services,AM006,spitality & Refreshments,3104,17/12/2018,14/12/2018,MCOLLS,GLOUCESTERSHI,GBR,GL1 2DN,REDACTED,556*********6128,5499,"MISC FOOD STORES-SPECIALITY,CONVENIENCE,MARKETS,VENDING MACHINES",4.09,Pound Sterling (826),1,4.09,Debit,4.53778E+22,02/01/2019,GLOUCESTER CC
Gloucester City Council,23UE,Docks Complex - Services,AM006,Building Repairs and Maintenance,1001,20/12/2018,19/12/2018,TIMPSON LTD,GLOUCESTER,,GL11RW,REDACTED,556*********6128,7251,"SHOE REPAIR SHOPS, SHOE SHINE PARLORS & HAT CLEANING SHOPS",12,Pound Sterling (826),1,12,Debit,8.54815E+22,02/01/2019,GLOUCESTER CC
Gloucester City Council,23UE,Business Support,BI004,Professional Advice/Consultants Fees,3952,18/12/2018,17/12/2018,WWW.ERONOMICS.CO.,INTERNET,GBR,BH21 7SE,REDACTED,556*********4234,5021,COMMERCIAL FURNITURE,180,Pound Sterling (826),1,180,Debit,5.27247E+21,02/01/2019,GLOUCESTER CC
Gloucester City Council,23UE,Development Management,PL003,Public Transport - Staff,2402,21/12/2018,20/12/2018,Trainline,London,GBR,1445,REDACTED,556*********4234,4112,PASSENGER RAILWAYS,72.45,Pound Sterling (826),1,72.45,Debit,8.51301E+22,02/01/2019,GLOUCESTER CC
Gloucester City Council,23UE,Civic Admin & Hospitality,DS001,Equipment and Furniture,3001,13/12/2018,13/12/2018,AMZN Mktp UK*M28OB1FB4,800-279-6620,LUX,L2338,REDACTED,556*********3029,5942,BOOK STORES,23.19,Pound Sterling (826),1,23.19,Debit,5.52047E+22,02/01/2019,GLOUCESTER CC
Gloucester City Council,23UE,Housing Services,HS001,B&B Payments,1303,03/12/2018,30/11/2018,Amerisuites,GLOUCESTER,,GL2 4NF,REDACTED,556*********6959,3514,AMERISUITES,570,Pound Sterling (826),1,570,Debit,8.54815E+22,02/01/2019,GLOUCESTER CC
Gloucester City Council,23UE,Housing Services,HS001,B&B Payments,1303,04/12/2018,03/12/2018,TRAVELODGE GB0000,THAME,,OX9 3AT,REDACTED,556*********6959,3615,TRAVELODGE,250,Pound Sterling (826),1,250,Debit,5.55044E+22,02/01/2019,GLOUCESTER CC
Gloucester City Council,23UE,Housing Services,HS001,B&B Payments,1303,05/12/2018,04/12/2018,TRAVELODGE GB0000,THAME,,OX9 3AT,REDACTED,556*********6959,3615,TRAVELODGE,200,Pound Sterling (826),1,200,Debit,5.55044E+22,02/01/2019,GLOUCESTER CC
Gloucester City Council,23UE,Housing Services,HS001,B&B Payments,1303,06/12/2018,05/12/2018,TRAVELODGE GB0000,THAME,,OX9 3AT,REDACTED,556*********6959,3615,TRAVELODGE,129,Pound Sterling (826),1,129,Debit,5.55044E+22,02/01/2019,GLOUCESTER CC
Gloucester City Council,23UE,Housing Services,HS001,B&B Payments,1303,07/12/2018,06/12/2018,TRAVELODGE GB0000,THAME,,OX9 3AT,REDACTED,556*********6959,3615,TRAVELODGE,44,Pound Sterling (826),1,44,Debit,5.55044E+22,02/01/2019,GLOUCESTER CC
Gloucester City Council,23UE,Housing Services,HS001,B&B Payments,1303,10/12/2018,07/12/2018,TRAVELODGE GB0000,THAME,,OX9 3AT,REDACTED,556*********6959,3615,TRAVELODGE,183,Pound Sterling (826),1,183,Debit,5.55044E+22,02/01/2019,GLOUCESTER CC
Gloucester City Council,23UE,Housing Services,HS001,B&B Payments,1303,10/12/2018,07/12/2018,TRAVELODGE GB0000,THAME,,OX9 3AT,REDACTED,556*********6959,3615,TRAVELODGE,327,Pound Sterling (826),1,327,Debit,5.55044E+22,02/01/2019,GLOUCESTER CC
Gloucester City Council,23UE,Housing Services,HS001,B&B Payments,1303,10/12/2018,07/12/2018,Amerisuites,GLOUCESTER,,GL2 4NF,REDACTED,556*********6959,3514,AMERISUITES,570,Pound Sterling (826),1,570,Debit,8.54815E+22,02/01/2019,GLOUCESTER CC
Gloucester City Council,23UE,Housing Services,HS001,B&B Payments,1303,11/12/2018,10/12/2018,TRAVELODGE GB0000,THAME,,OX9 3AT,REDACTED,556*********6959,3615,TRAVELODGE,54,Pound Sterling (826),1,54,Debit,5.55044E+22,02/01/2019,GLOUCESTER CC
Gloucester City Council,23UE,Housing Services,HS001,B&B Payments,1303,11/12/2018,10/12/2018,TRAVELODGE GB0000,THAME,,OX9 3AT,REDACTED,556*********6959,3615,TRAVELODGE,232,Pound Sterling (826),1,232,Debit,5.55044E+22,02/01/2019,GLOUCESTER CC
Gloucester City Council,23UE,Housing Services,HS001,B&B Payments,1303,11/12/2018,10/12/2018,TRAVELODGE GB0000,THAME,,OX9 3AT,REDACTED,556*********6959,3615,TRAVELODGE,54,Pound Sterling (826),1,54,Debit,5.55044E+22,02/01/2019,GLOUCESTER CC
Gloucester City Council,23UE,Housing Services,HS001,B&B Payments,1303,11/12/2018,10/12/2018,TRAVELODGE GB0000,THAME,,OX9 3AT,REDACTED,556*********6959,3615,TRAVELODGE,54,Pound Sterling (826),1,54,Debit,5.55044E+22,02/01/2019,GLOUCESTER CC
Gloucester City Council,23UE,Housing Services,HS001,B&B Payments,1303,11/12/2018,10/12/2018,TRAVELODGE GB0000,THAME,,OX9 3AT,REDACTED,556*********6959,3615,TRAVELODGE,170,Pound Sterling (826),1,170,Debit,5.55044E+22,02/01/2019,GLOUCESTER CC
Gloucester City Council,23UE,Housing Services,HS001,B&B Payments,1303,11/12/2018,10/12/2018,TRAVELODGE GB0000,THAME,,OX9 3AT,REDACTED,556*********6959,3615,TRAVELODGE,170,Pound Sterling (826),1,170,Debit,5.55044E+22,02/01/2019,GLOUCESTER CC
Gloucester City Council,23UE,Housing Services,HS001,B&B Payments,1303,12/12/2018,11/12/2018,TRAVELODGE GB0000,THAME,,OX9 3AT,REDACTED,556*********6959,3615,TRAVELODGE,58,Pound Sterling (826),1,58,Debit,5.55044E+22,02/01/2019,GLOUCESTER CC
Gloucester City Council,23UE,Housing Services,HS001,B&B Payments,1303,12/12/2018,11/12/2018,TRAVELODGE GB0000,THAME,,OX9 3AT,REDACTED,556*********6959,3615,TRAVELODGE,166,Pound Sterling (826),1,166,Debit,5.55044E+22,02/01/2019,GLOUCESTER CC
Gloucester City Council,23UE,Housing Services,HS001,B&B Payments,1303,12/12/2018,11/12/2018,TRAVELODGE GB0000,THAME,,OX9 3AT,REDACTED,556*********6959,3615,TRAVELODGE,58,Pound Sterling (826),1,58,Debit,5.55044E+22,02/01/2019,GLOUCESTER CC
Gloucester City Council,23UE,Housing Services,HS001,B&B Payments,1303,13/12/2018,12/12/2018,TRAVELODGE GB0000,THAME,,OX9 3AT,REDACTED,556*********6959,3615,TRAVELODGE,58,Pound Sterling (826),1,58,Debit,5.55044E+22,02/01/2019,GLOUCESTER CC
Gloucester City Council,23UE,Housing Services,HS001,B&B Payments,1303,13/12/2018,12/12/2018,TRAVELODGE GB0000,THAME,,OX9 3AT,REDACTED,556*********6959,3615,TRAVELODGE,58,Pound Sterling (826),1,58,Debit,5.55044E+22,02/01/2019,GLOUCESTER CC
Gloucester City Council,23UE,Housing Services,HS001,B&B Payments,1303,14/12/2018,13/12/2018,TRAVELODGE GB0000,THAME,,OX9 3AT,REDACTED,556*********6959,3615,TRAVELODGE,54,Pound Sterling (826),1,54,Debit,5.55044E+22,02/01/2019,GLOUCESTER CC
Gloucester City Council,23UE,Housing Services,HS001,B&B Payments,1303,14/12/2018,13/12/2018,TRAVELODGE GB0000,THAME,,OX9 3AT,REDACTED,556*********6959,3615,TRAVELODGE,196,Pound Sterling (826),1,196,Debit,5.55044E+22,02/01/2019,GLOUCESTER CC
Gloucester City Council,23UE,Housing Services,HS001,Mileage and Travel Allowances,2401,14/12/2018,13/12/2018,RAILEASY WEB SITE,LONDON 3043,,E11 1QF,REDACTED,556*********6959,4112,PASSENGER RAILWAYS,107.98,Pound Sterling (826),1,107.98,Debit,5.55044E+22,02/01/2019,GLOUCESTER CC
Gloucester City Council,23UE,Housing Services,HS001,B&B Payments,1303,17/12/2018,14/12/2018,TRAVELODGE GB0000,THAME,,OX9 3AT,REDACTED,556*********6959,3615,TRAVELODGE,254,Pound Sterling (826),1,254,Debit,5.55044E+22,02/01/2019,GLOUCESTER CC
Gloucester City Council,23UE,Housing Services,HS001,B&B Payments,1303,17/12/2018,14/12/2018,TRAVELODGE GB0000,THAME,,OX9 3AT,REDACTED,556*********6959,3615,TRAVELODGE,158,Pound Sterling (826),1,158,Debit,5.55044E+22,02/01/2019,GLOUCESTER CC
Gloucester City Council,23UE,Housing Services,HS001,B&B Payments,1303,17/12/2018,14/12/2018,Amerisuites,GLOUCESTER,,GL2 4NF,REDACTED,556*********6959,3514,AMERISUITES,570,Pound Sterling (826),1,570,Debit,8.54815E+22,02/01/2019,GLOUCESTER CC
Gloucester City Council,23UE,Housing Services,HS001,Mileage and Travel Allowances,2401,17/12/2018,14/12/2018,NATIONAL EXPRESS LIMIT,BIRMINGHAM,,B5 6DD,REDACTED,556*********6959,4131,"BUS LINES, CHARTERS, TOUR BUSES",13.3,Pound Sterling (826),1,13.3,Debit,8.54815E+22,02/01/2019,GLOUCESTER CC
Gloucester City Council,23UE,Housing Services,HS001,B&B Payments,1303,18/12/2018,17/12/2018,TRAVELODGE GB0000,THAME,,OX9 3AT,REDACTED,556*********6959,3615,TRAVELODGE,50,Pound Sterling (826),1,50,Debit,5.55044E+22,02/01/2019,GLOUCESTER CC
Gloucester City Council,23UE,Housing Services,HS001,B&B Payments,1303,18/12/2018,17/12/2018,TRAVELODGE GB0000,THAME,,OX9 3AT,REDACTED,556*********6959,3615,TRAVELODGE,150,Pound Sterling (826),1,150,Debit,5.55044E+22,02/01/2019,GLOUCESTER CC
Gloucester City Council,23UE,Housing Services,HS001,B&B Payments,1303,18/12/2018,17/12/2018,TRAVELODGE GB0000,THAME,,OX9 3AT,REDACTED,556*********6959,3615,TRAVELODGE,150,Pound Sterling (826),1,150,Debit,5.55044E+22,02/01/2019,GLOUCESTER CC
Gloucester City Council,23UE,Housing Services,HS001,B&B Payments,1303,18/12/2018,17/12/2018,TRAVELODGE GB0000,THAME,,OX9 3AT,REDACTED,556*********6959,3615,TRAVELODGE,50,Pound Sterling (826),1,50,Debit,5.55044E+22,02/01/2019,GLOUCESTER CC
Gloucester City Council,23UE,Housing Services,HS001,B&B Payments,1303,19/12/2018,18/12/2018,TRAVELODGE GB0000,THAME,,OX9 3AT,REDACTED,556*********6959,3615,TRAVELODGE,433,Pound Sterling (826),1,433,Debit,5.55044E+22,02/01/2019,GLOUCESTER CC
Gloucester City Council,23UE,Housing Services,HS001,B&B Payments,1303,19/12/2018,18/12/2018,TRAVELODGE GB0000,THAME,,OX9 3AT,REDACTED,556*********6959,3615,TRAVELODGE,50,Pound Sterling (826),1,50,Debit,5.55044E+22,02/01/2019,GLOUCESTER CC
Gloucester City Council,23UE,Housing Services,HS001,B&B Payments,1303,19/12/2018,18/12/2018,TRAVELODGE GB0000,THAME,,OX9 3AT,REDACTED,556*********6959,3615,TRAVELODGE,433,Pound Sterling (826),1,433,Debit,5.55044E+22,02/01/2019,GLOUCESTER CC
Gloucester City Council,23UE,Housing Services,HS001,B&B Payments,1303,20/12/2018,19/12/2018,TRAVELODGE GB0000,THAME,,OX9 3AT,REDACTED,556*********6959,3615,TRAVELODGE,50,Pound Sterling (826),1,50,Debit,5.55044E+22,02/01/2019,GLOUCESTER CC
Gloucester City Council,23UE,Housing Services,HS001,B&B Payments,1303,20/12/2018,19/12/2018,TRAVELODGE GB0000,THAME,,OX9 3AT,REDACTED,556*********6959,3615,TRAVELODGE,50,Pound Sterling (826),1,50,Debit,5.55044E+22,02/01/2019,GLOUCESTER CC
Gloucester City Council,23UE,Housing Services,HS001,B&B Payments,1303,21/12/2018,20/12/2018,TRAVELODGE GB0000,THAME,,OX9 3AT,REDACTED,556*********6959,3615,TRAVELODGE,50,Pound Sterling (826),1,50,Debit,5.55044E+22,02/01/2019,GLOUCESTER CC
Gloucester City Council,23UE,Housing Services,HS001,B&B Payments,1303,21/12/2018,20/12/2018,TRAVELODGE GB0000,THAME,,OX9 3AT,REDACTED,556*********6959,3615,TRAVELODGE,49,Pound Sterling (826),1,49,Debit,5.55044E+22,02/01/2019,GLOUCESTER CC
Gloucester City Council,23UE,Housing Services,HS001,B&B Payments,1303,21/12/2018,20/12/2018,TRAVELODGE GB0000,THAME,,OX9 3AT,REDACTED,556*********6959,3615,TRAVELODGE,50,Pound Sterling (826),1,50,Debit,5.55044E+22,02/01/2019,GLOUCESTER CC
Gloucester City Council,23UE,Housing Services,HS001,B&B Payments,1303,21/12/2018,20/12/2018,TRAVELODGE GB0000,THAME,,OX9 3AT,REDACTED,556*********6959,3615,TRAVELODGE,50,Pound Sterling (826),1,50,Debit,5.55044E+22,02/01/2019,GLOUCESTER CC
Gloucester City Council,23UE,Housing Services,HS001,B&B Payments,1303,21/12/2018,20/12/2018,TRAVELODGE GB0000,THAME,,OX9 3AT,REDACTED,556*********6959,3615,TRAVELODGE,-50,Pound Sterling (826),1,-50,Credit,5.55044E+22,02/01/2019,GLOUCESTER CC
Gloucester City Council,23UE,Housing Services,HS001,B&B Payments,1303,24/12/2018,21/12/2018,TRAVELODGE GB0000,THAME,,OX9 3AT,REDACTED,556*********6959,3615,TRAVELODGE,269,Pound Sterling (826),1,269,Debit,5.55044E+22,02/01/2019,GLOUCESTER CC
Gloucester City Council,23UE,Housing Services,HS001,B&B Payments,1303,24/12/2018,22/12/2018,Amerisuites,GLOUCESTER,,GL2 4NF,REDACTED,556*********6959,3514,AMERISUITES,180,Pound Sterling (826),1,180,Debit,8.54815E+22,02/01/2019,GLOUCESTER CC
Gloucester City Council,23UE,Housing Services,HS001,B&B Payments,1303,28/12/2018,27/12/2018,TRAVELODGE GB0000,THAME,,OX9 3AT,REDACTED,556*********6959,3615,TRAVELODGE,50,Pound Sterling (826),1,50,Debit,5.55044E+22,02/01/2019,GLOUCESTER CC
Gloucester City Council,23UE,Housing Services,HS001,B&B Payments,1303,31/12/2018,28/12/2018,TRAVELODGE GB0000,THAME,,OX9 3AT,REDACTED,556*********6959,3615,TRAVELODGE,295,Pound Sterling (826),1,295,Debit,5.55044E+22,02/01/2019,GLOUCESTER CC
Gloucester City Council,23UE,Housing Services,HS001,B&B Payments,1303,31/12/2018,28/12/2018,TRAVELODGE GB0000,THAME,,OX9 3AT,REDACTED,556*********6959,3615,TRAVELODGE,258,Pound Sterling (826),1,258,Debit,5.55044E+22,02/01/2019,GLOUCESTER CC
Gloucester City Council,23UE,Housing Services,HS001,B&B Payments,1303,01/01/2019,31/12/2018,TRAVELODGE GB0000,THAME,,OX9 3AT,REDACTED,556*********6959,3615,TRAVELODGE,142,Pound Sterling (826),1,142,Debit,5.55044E+22,02/01/2019,GLOUCESTER CC
Gloucester City Council,23UE,Housing Services,HS001,B&B Payments,1303,01/01/2019,31/12/2018,TRAVELODGE GB0000,THAME,,OX9 3AT,REDACTED,556*********6959,3615,TRAVELODGE,183,Pound Sterling (826),1,183,Debit,5.55044E+22,02/01/2019,GLOUCESTER CC
Gloucester City Council,23UE,Guildhall Events,GH002,Advertising & Publicity,3404,19/12/2018,18/12/2018,MAILCHIMP *MONTHLY,MAILCHIMP.COM,GA,30308,REDACTED,556*********8256,5968,CONTINUITY/SUBSCRIPTION MERCHANTS,16.07,Pound Sterling (826),1,16.07,Debit,5.54254E+22,02/01/2019,GLOUCESTER CC
Gloucester City Council,23UE,Business Support,BI004,General Supplies/Materials,3025,05/12/2018,04/12/2018,AMZN MKTP UK*M01AJ8HU4,AMAZON.CO.UK,LUX,,REDACTED,556*********3063,5942,BOOK STORES,22.83,Pound Sterling (826),1,22.83,Debit,8.53892E+22,02/01/2019,GLOUCESTER CC
Gloucester City Council,23UE,Financial Services,FS004,Public Transport - Staff,2402,06/12/2018,05/12/2018,Trainline,London,GBR,1445,REDACTED,556*********3063,4112,PASSENGER RAILWAYS,-32,Pound Sterling (826),1,-32,Credit,8.51301E+22,02/01/2019,GLOUCESTER CC
Gloucester City Council,23UE,Business Transformation,BI006,General Supplies/Materials,3025,10/12/2018,09/12/2018,AMZN Mktp UK*M08YG47E4,800-279-6620,LUX,L2338,REDACTED,556*********3063,5942,BOOK STORES,13.08,Pound Sterling (826),1,13.08,Debit,5.52047E+22,02/01/2019,GLOUCESTER CC
Gloucester City Council,23UE,Business Transformation,BI006,General Supplies/Materials,3025,10/12/2018,09/12/2018,AMZN MKTP UK*M072T17O4,AMAZON.CO.UK,LUX,,REDACTED,556*********3063,5942,BOOK STORES,14.08,Pound Sterling (826),1,14.08,Debit,8.53892E+22,02/01/2019,GLOUCESTER CC
Gloucester City Council,23UE,Business Transformation,BI006,General Supplies/Materials,3025,11/12/2018,10/12/2018,AMZN MKTP UK*M03WV1UX4,AMAZON.CO.UK,LUX,,REDACTED,556*********3063,5942,BOOK STORES,5.54,Pound Sterling (826),1,5.54,Debit,8.53892E+22,02/01/2019,GLOUCESTER CC
Gloucester City Council,23UE,Business Transformation,BI006,Equipment and Furniture,3001,17/12/2018,14/12/2018,AMZ*iMend,amzn.com/pmts,LUX,UNKNOWN,REDACTED,556*********3063,4816,COMPUTER NETWORK/INFORMATION SERVICES,79.98,Pound Sterling (826),1,79.98,Debit,5.52047E+22,02/01/2019,GLOUCESTER CC
Gloucester City Council,23UE,Business Transformation,BI006,ICT New Hardware,3523,17/12/2018,15/12/2018,Amazon.co.uk*M20TR4NE4,AMAZON.CO.UK,LUX,L2338,REDACTED,556*********3063,5969,ALL OTHER DIRECT MARKETERS,107.32,Pound Sterling (826),1,107.32,Debit,5.52047E+22,02/01/2019,GLOUCESTER CC
Gloucester City Council,23UE,Business Transformation,BI006,Equipment and Furniture,3001,21/12/2018,20/12/2018,AMZ*iMend,amzn.com/pmts,LUX,UNKNOWN,REDACTED,556*********3063,4816,COMPUTER NETWORK/INFORMATION SERVICES,-74.99,Pound Sterling (826),1,-74.99,Credit,5.52047E+22,02/01/2019,GLOUCESTER CC
Gloucester City Council,23UE,Docks Complex - Telephones,BI007,ICT New Hardware,3523,28/12/2018,27/12/2018,AMZN Mktp UK*M24Q78S44,800-279-6620,LUX,L2338,REDACTED,556*********3063,5942,BOOK STORES,53.45,Pound Sterling (826),1,53.45,Debit,5.52047E+22,02/01/2019,GLOUCESTER CC
